bitfinex-derivatives/quotes_BTCF0:USTF0_20220103
["timestamp","ask_amount","ask_price","bid_price","bid_amount"]
[1641252480489,0.179,46388.0,46387.0,0.34489153]
[1641252480891,0.18460782,46388.0,46387.0,0.34489153]
[1641252481390,0.18460782,46388.0,46387.0,1.08716004]
[1641252481691,0.18460782,46388.0,46387.0,1.06560418]
[1641252481892,0.18460782,46388.0,46387.0,0.88260418]
[1641252482501,0.18460782,46388.0,46387.0,1.07260418]
[1641252483701,0.18460782,46388.0,46387.0,1.09416005]
[1641252483902,0.18460782,46388.0,46387.0,0.90416005]
[1641252484501,0.18460782,46388.0,46387.0,1.09816005]
[1641252485803,0.18460782,46388.0,46387.0,0.90416005]
[1641252486603,0.18460782,46388.0,46387.0,1.09316005]
[1641252487807,0.18460782,46388.0,46387.0,0.90416005]
[1641252488007,0.18460782,46388.0,46387.0,0.88260418]
[1641252488508,0.18460782,46388.0,46387.0,1.07060418]
[1641252489909,0.18460782,46388.0,46387.0,0.88260418]
[1641252490610,0.18460782,46388.0,46387.0,1.06960418]
[1641252491911,0.18460782,46388.0,46387.0,0.88260418]
[1641252492512,0.18460782,46388.0,46387.0,1.06960418]
[1641252494014,0.18460782,46388.0,46387.0,0.88260418]
[1641252494514,0.18460782,46388.0,46387.0,1.07160418]
[1641252496016,0.18460782,46388.0,46387.0,0.88260418]
[1641252496616,0.18460782,46388.0,46387.0,1.07060418]
[1641252497816,0.18460782,46388.0,46387.0,0.88260418]
[1641252498620,0.18460782,46388.0,46387.0,1.07060418]
[1641252499933,0.18460782,46388.0,46387.0,0.88260418]
[1641252500533,0.18460782,46388.0,46387.0,1.07060418]
[1641252501834,0.18460782,46388.0,46387.0,0.88260418]
[1641252502536,0.18460782,46388.0,46387.0,1.07160418]
[1641252503839,0.18460782,46388.0,46387.0,0.88260418]
[1641252504538,0.18460782,46388.0,46387.0,1.13787418]
[1641252505340,0.00560782,46388.0,46387.0,1.16042812]
[1641252505540,0.84599239,46390.0,46387.0,1.16042812]
[1641252505844,0.14033567,46407.0,46387.0,0.96105105]
[1641252506041,0.14033567,46407.0,46394.0,0.001]
[1641252506541,1.21360402,46397.0,46394.0,0.186]
[1641252507342,1.21360402,46397.0,46395.0,0.01217502]
[1641252507542,1.21360402,46397.0,46396.0,0.02154979]
[1641252507944,0.179,46406.0,46396.0,0.02154979]
[1641252508550,0.31933567,46407.0,46399.0,0.14033567]
[1641252508753,0.31933567,46407.0,46399.0,0.21828567]
[1641252508951,0.179,46402.0,46399.0,0.21828567]
[1641252509653,0.178,46400.0,46399.0,0.21828567]
[1641252509955,0.14033567,46407.0,46399.0,0.21828567]
[1641252510156,0.14033567,46407.0,46399.0,0.23983594]
[1641252510657,0.14033567,46407.0,46399.0,0.42283594]
[1641252511258,0.14033567,46407.0,46400.0,0.74226851]
[1641252511457,0.18,46412.0,46406.0,0.02154741]
[1641252511656,0.178,46407.0,46406.0,0.02154741]
[1641252512456,0.178,46407.0,46400.0,0.74226851]
[1641252512657,0.18,46412.0,46407.0,0.74226851]
[1641252512857,0.178,46408.0,46407.0,0.74226851]
[1641252513657,0.178,46408.0,46406.0,0.183]
[1641252513857,0.178,46408.0,46405.0,0.74226851]
[1641252514559,0.178,46408.0,46405.0,0.92326851]
[1641252515261,0.178,46408.0,46405.0,0.181]
[1641252515862,0.178,46408.0,46404.0,0.14033567]
[1641252516063,0.18,46410.0,46404.0,0.14033567]
[1641252516362,0.18,46410.0,46406.0,0.74226851]
[1641252516564,0.178,46407.0,46406.0,0.74226851]
[1641252517867,0.178,46407.0,46405.0,0.74226851]
[1641252518068,0.178,46406.0,46405.0,0.74226851]
[1641252518268,0.178,46406.0,46404.0,0.14033567]
[1641252518469,0.18,46410.0,46405.0,0.187]
[1641252518670,0.18,46410.0,46405.0,0.2714]
[1641252518871,0.178,46406.0,46405.0,0.2714]
[1641252519672,1.39484704,46406.0,46405.0,0.2714]
[1641252520071,1.21684704,46406.0,46405.0,0.2714]
[1641252520472,1.39484704,46406.0,46405.0,0.188]
[1641252520870,1.46368704,46406.0,46405.0,0.188]
[1641252521870,1.46368704,46406.0,46404.0,0.14033567]
[1641252522471,1.46368704,46406.0,46404.0,0.32633567]
[1641252522672,1.46368704,46406.0,46404.0,0.186]
[1641252522971,0.24684,46406.0,46404.0,0.186]
[1641252523272,0.18,46405.0,46404.0,0.186]
[1641252523874,0.18,46405.0,46400.0,0.02154986]
[1641252524375,0.178,46401.0,46400.0,0.02154986]
[1641252524574,0.178,46401.0,46400.0,0.21054986]
[1641252525377,1.02890532,46401.0,46400.0,0.21054986]
[1641252525974,1.02890532,46401.0,46400.0,0.02154986]
[1641252526176,0.178,46401.0,46400.0,0.02154986]
[1641252526377,0.178,46401.0,46395.0,1.46099496]
[1641252526576,0.178,46401.0,46400.0,0.191]
[1641252527779,0.178,46401.0,46397.0,0.02155115]
[1641252528483,0.178,46401.0,46397.0,0.21255115]
[1641252528686,1.21557903,46402.0,46397.0,0.21255115]
[1641252528981,0.178,46398.0,46397.0,0.21255115]
[1641252529983,1.21557903,46402.0,46397.0,0.02155115]
[1641252530383,0.178,46400.0,46397.0,0.02155115]
[1641252530588,1.21557903,46402.0,46397.0,0.21155115]
[1641252531185,0.178,46398.0,46397.0,0.21155115]
[1641252531886,0.14033567,46404.0,46397.0,0.02155115]
[1641252532085,0.31833567,46404.0,46397.0,0.02155115]
[1641252532487,0.14033567,46404.0,46397.0,0.20955115]
[1641252532685,0.178,46398.0,46397.0,3.30107632]
[1641252532890,0.14033567,46404.0,46397.0,3.30107632]
[1641252533188,0.178,46398.0,46397.0,3.30107632]
[1641252533990,0.178,46398.0,46397.0,3.11307632]
[1641252534589,0.178,46398.0,46397.0,3.30707632]
[1641252535990,0.178,46398.0,46397.0,3.11307632]
[1641252536591,0.178,46398.0,46397.0,3.30507632]
[1641252536790,0.178,46398.0,46397.0,0.21355115]
[1641252537893,0.178,46398.0,46397.0,0.02155115]
[1641252538093,0.178,46398.0,46394.0,0.02155299]
[1641252538295,0.178,46398.0,46397.0,0.02155127]
[1641252538493,0.178,46398.0,46397.0,0.21055127]
[1641252541995,0.178,46398.0,46397.0,0.02155127]
[1641252542603,0.178,46398.0,46397.0,0.20955127]
[1641252542806,1.03027804,46398.0,46397.0,0.20955127]
[1641252543807,1.03027804,46398.0,46397.0,0.02155127]
[1641252544208,0.178,46398.0,46397.0,0.02155127]
[1641252544507,0.178,46398.0,46397.0,0.20955127]
[1641252545810,1.03027804,46398.0,46397.0,0.02155127]
[1641252546410,1.21027804,46398.0,46393.0,1.48254802]
[1641252546610,0.92371804,46398.0,46397.0,0.188]
[1641252546812,1.10171804,46398.0,46397.0,0.188]
[1641252547313,0.24944,46398.0,46397.0,0.188]
[1641252547915,0.24944,46398.0,46393.0,1.48254802]
[1641252548214,0.178,46398.0,46393.0,1.48254802]
[1641252548414,1.03027804,46398.0,46393.0,1.48254802]
[1641252548619,1.03027804,46398.0,46393.0,1.67254802]
[1641252548816,1.03027804,46398.0,46395.0,0.14033567]
[1641252549216,0.178,46398.0,46395.0,0.14033567]
[1641252550618,0.178,46398.0,46396.0,0.87078262]
[1641252552521,0.178,46398.0,46396.0,1.06178262]
[1641252552717,0.85227804,46400.0,46396.0,1.06178262]
[1641252552718,0.178,46397.0,46396.0,1.06178262]
[1641252553921,0.178,46397.0,46396.0,0.89233249]
[1641252554620,0.178,46397.0,46396.0,1.08433249]
[1641252554922,0.178,46397.0,46396.0,1.06278262]
[1641252556022,0.009794,46396.0,46388.0,1.56361108]
[1641252556223,0.358,46389.0,46388.0,1.56361108]
[1641252556426,0.44182,46389.0,46384.0,1.59611108]
[1641252556723,0.178,46385.0,46384.0,1.59611108]
[1641252557124,0.178,46385.0,46384.0,1.60828902]
[1641252557525,0.178,46385.0,46384.0,1.62984627]
[1641252558028,0.178,46385.0,46384.0,0.06623519]
[1641252558424,0.85246625,46388.0,46384.0,0.03373519]
[1641252558625,0.85246625,46388.0,46385.0,0.002]
[1641252558824,0.85246625,46388.0,46387.0,0.02155423]
[1641252559127,0.178,46389.0,46387.0,0.02155423]
[1641252559325,0.178,46389.0,46387.0,0.03373217]
[1641252559524,0.178,46389.0,46388.0,0.01217794]
[1641252560626,0.178,46389.0,46388.0,0.20017794]
[1641252561429,0.009794,46391.0,46388.0,0.20017794]
[1641252561828,0.009794,46391.0,46388.0,1.64669599]
[1641252562027,1.17080192,46393.0,46390.0,0.02155264]
[1641252562228,1.03046625,46393.0,46391.0,0.002]
[1641252562428,0.85246625,46393.0,46391.0,0.01417659]
[1641252562635,1.21557903,46395.0,46392.0,0.02155034]
[1641252562829,0.851504,46398.0,46394.0,0.02354534]
[1641252563029,1.21643429,46400.0,46397.0,0.28267134]
[1641252563229,0.178,46407.0,46397.0,0.28267134]
[1641252563432,0.14033567,46413.0,46405.0,0.002]
[1641252563631,0.178,46410.0,46408.0,0.002]
[1641252564031,0.178,46410.0,46405.0,0.07225]
[1641252564232,0.18,46419.0,46405.0,0.07225]
[1641252564430,0.178,46406.0,46405.0,0.07225]
[1641252564630,0.178,46410.0,46405.0,0.26525]
[1641252564832,0.178,46413.0,46409.0,0.02154386]
[1641252565030,0.178,46413.0,46412.0,0.14033567]
[1641252565630,0.009794,46420.0,46412.0,0.14033567]
[1641252565631,0.178,46414.0,46412.0,0.14033567]
[1641252566630,0.178,46414.0,46412.0,0.32733567]
[1641252567932,0.178,46414.0,46412.0,0.14033567]
[1641252568532,0.178,46414.0,46412.0,0.32933567]
[1641252569937,0.178,46414.0,46412.0,0.14033567]
[1641252570639,0.178,46414.0,46412.0,0.32633567]
[1641252571236,0.18,46413.0,46412.0,0.32633567]
[1641252571637,1.03127128,46413.0,46412.0,0.32633567]
[1641252572039,1.03127128,46413.0,46412.0,0.14033567]
[1641252572237,0.18,46413.0,46412.0,0.14033567]
[1641252572637,0.18,46413.0,46412.0,0.31433567]
[1641252573840,0.18,46413.0,46412.0,0.14033567]
[1641252574440,1.03123958,46413.0,46412.0,0.14033567]
[1641252574644,1.03123958,46413.0,46412.0,0.31433567]
[1641252575640,0.18,46413.0,46412.0,0.31433567]
[1641252576040,0.18,46413.0,46412.0,0.14033567]
[1641252576640,0.18,46413.0,46412.0,0.31233567]
[1641252577244,0.18,46413.0,46412.0,1.23397968]
[1641252577943,0.18,46413.0,46412.0,1.09364401]
[1641252578142,0.18,46413.0,46412.0,0.92164401]
[1641252578744,0.18,46413.0,46412.0,1.09264401]
[1641252579244,0.18,46413.0,46412.0,0.171]
[1641252580144,0.18,46413.0,46412.0,0.92164401]
[1641252580644,0.18,46413.0,46412.0,1.09964401]
[1641252582144,0.18,46413.0,46412.0,0.92164401]
[1641252582847,0.18,46413.0,46412.0,1.09064401]
[1641252584248,0.181,46413.0,46412.0,1.09064401]
[1641252584649,0.181,46413.0,46412.0,1.08064401]
[1641252584857,0.181,46413.0,46404.0,0.02154796]
[1641252585152,0.178,46405.0,46401.0,1.45869599]
[1641252585350,0.178,46402.0,46401.0,1.45869599]
[1641252586652,0.373,46402.0,46399.0,0.99096212]
[1641252587054,0.373,46402.0,46399.0,0.96941171]
[1641252588054,0.178,46402.0,46399.0,0.96941171]
[1641252588457,1.03022905,46402.0,46398.0,0.002]
[1641252588655,1.18122905,46402.0,46399.0,0.184]
[1641252589056,1.18122905,46402.0,46400.0,0.0121738]
[1641252589255,0.329,46402.0,46400.0,0.0121738]
[1641252589456,0.329,46402.0,46401.0,0.0215489]
[1641252590157,0.178,46402.0,46401.0,0.0215489]
[1641252590355,0.178,46402.0,46398.0,0.002]
[1641252590756,0.33,46402.0,46401.0,0.183]
[1641252590956,0.33,46402.0,46401.0,0.185]
[1641252591165,0.33,46402.0,46401.0,0.2065472]
[1641252591366,0.33,46402.0,46401.0,0.21672086]
[1641252591767,0.33,46402.0,46401.0,0.2045472]
[1641252591967,0.178,46402.0,46401.0,0.0215472]
[1641252592771,0.216,46402.0,46401.0,0.2025472]
[1641252593570,0.038,46402.0,46401.0,0.2729972]
[1641252593769,0.038,46402.0,46401.0,0.2749972]
[1641252593969,0.85222905,46412.0,46401.0,0.19231592]
[1641252594170,1.03022905,46413.0,46402.0,0.002]
[1641252594770,0.178,46404.0,46402.0,0.002]
[1641252594970,0.178,46404.0,46401.0,0.0919972]
[1641252595372,0.178,46404.0,46403.0,0.14033567]
[1641252596672,0.356,46404.0,46403.0,0.30533567]
[1641252598073,0.178,46404.0,46403.0,0.14033567]
[1641252598874,0.355,46404.0,46403.0,0.30433567]
[1641252600076,0.355,46404.0,46403.0,0.38616567]
[1641252600274,0.177,46404.0,46403.0,0.38816567]
[1641252600478,0.177,46404.0,46403.0,0.4003385]
[1641252600677,0.299,46404.0,46403.0,0.5883385]
[1641252600878,0.299,46404.0,46403.0,1.43167635]
[1641252601079,0.299,46404.0,46403.0,1.42967635]
[1641252602079,0.122,46404.0,46403.0,1.07767635]
[1641252602279,0.18,46413.0,46403.0,1.07767635]
[1641252602680,0.315,46404.0,46403.0,1.26567635]
[1641252602880,0.315,46404.0,46403.0,1.25350352]
[1641252603084,0.315,46404.0,46403.0,0.41016567]
[1641252603282,0.315,46404.0,46403.0,0.32833567]
[1641252603682,0.39681,46404.0,46403.0,0.32833567]
[1641252604083,0.25981,46404.0,46403.0,0.14033567]
[1641252604681,0.43581,46404.0,46403.0,0.22033567]
[1641252606181,0.25981,46404.0,46403.0,0.14033567]
[1641252606581,0.178,46404.0,46403.0,0.14033567]
[1641252606782,0.373,46404.0,46403.0,0.14033567]
[1641252608185,0.178,46404.0,46403.0,0.14033567]
[1641252608682,0.373,46404.0,46403.0,0.14033567]
[1641252610082,0.178,46404.0,46403.0,0.14033567]
[1641252610885,0.378,46404.0,46403.0,0.14033567]
[1641252612183,0.85222905,46405.0,46403.0,0.14033567]
[1641252612787,0.85222905,46404.0,46403.0,0.14033567]
[1641252613686,0.93090905,46404.0,46403.0,0.14033567]
[1641252614789,0.27568,46404.0,46403.0,0.14033567]
[1641252614989,0.197,46404.0,46403.0,0.14033567]
[1641252615892,0.375,46404.0,46403.0,0.14033567]
[1641252616091,0.178,46404.0,46403.0,0.14033567]
[1641252616890,0.373,46404.0,46403.0,0.14033567]
[1641252618091,0.178,46404.0,46403.0,0.14033567]
[1641252618994,0.372,46404.0,46403.0,0.98713068]
[1641252620897,0.564,46404.0,46403.0,0.98713068]
[1641252621098,0.573794,46404.0,46403.0,0.84679501]
[1641252621299,1.72535072,46404.0,46391.0,0.96941171]
[1641252621496,0.358,46392.0,46391.0,0.96941171]
[1641252621697,0.44798,46392.0,46391.0,0.96941171]
[1641252622296,0.26798,46392.0,46391.0,0.96941171]
[1641252622497,0.44798,46392.0,46391.0,0.96941171]
[1641252622696,0.44798,46392.0,46372.0,1.9978]
[1641252622697,1.57798,46392.0,46377.0,3.48135117]
[1641252622897,1.13,46388.0,46377.0,3.48135117]
[1641252623097,0.18,46384.0,46382.0,1.57158729]
[1641252623397,0.178,46383.0,46382.0,1.57158729]
[1641252623800,0.31833567,46383.0,46382.0,1.57158729]
[1641252623997,1.44833567,46383.0,46378.0,0.99788219]
[1641252624198,0.358,46379.0,46378.0,0.99788219]
[1641252624399,0.44708,46379.0,46369.0,0.14033567]
[1641252624599,0.18,46376.0,46369.0,0.14033567]
[1641252624814,0.178,46370.0,46369.0,0.14033567]
[1641252624999,0.186,46379.0,46369.0,0.14033567]
[1641252625199,0.178,46374.0,46373.0,0.02156269]
[1641252626100,0.85216883,46377.0,46373.0,0.02156269]
[1641252626302,0.85216883,46377.0,46373.0,0.02356269]
[1641252626500,1.21749269,46379.0,46377.0,3.01663663]
[1641252626701,1.21749269,46379.0,46377.0,3.08018663]
[1641252627102,1.21749269,46379.0,46378.0,0.02155732]
[1641252627502,0.178,46384.0,46378.0,0.02155732]
[1641252627904,0.178,46380.0,46379.0,0.14033567]
[1641252628806,0.306,46380.0,46379.0,0.14033567]
[1641252630304,0.2525,46380.0,46379.0,0.14033567]
[1641252630907,0.6225,46380.0,46374.0,0.02156192]
[1641252631106,0.178,46375.0,46374.0,0.02156192]
[1641252631305,0.178,46375.0,46370.0,1.57554173]
[1641252631509,0.178,46372.0,46370.0,1.57554173]
[1641252631707,0.178,46372.0,46371.0,0.001]
[1641252632806,0.352,46372.0,46371.0,0.001]
[1641252633206,0.174,46372.0,46371.0,0.001]
[1641252634209,0.058,46377.0,46371.0,0.001]
[1641252634406,1.53782836,46380.0,46373.0,0.02156238]
[1641252634607,0.178,46374.0,46373.0,0.02156238]
[1641252634806,0.178,46374.0,46369.0,0.14033567]
[1641252635008,0.194,46377.0,46369.0,0.14033567]
[1641252635208,0.178,46370.0,46369.0,0.14033567]
[1641252635409,0.178,46370.0,46369.0,0.14133567]
[1641252636912,0.33,46370.0,46369.0,0.68055034]
[1641252638315,0.178,46370.0,46369.0,0.68055034]
[1641252639925,0.178,46370.0,46369.0,0.69272979]
[1641252641131,1.21749269,46381.0,46369.0,0.89428844]
[1641252641431,0.6908655,46396.0,46380.0,0.18]
[1641252641630,0.8708655,46396.0,46383.0,0.18]
[1641252641830,0.009794,46395.0,46381.0,0.01217945]
[1641252642032,0.009794,46395.0,46382.0,0.18]
[1641252642230,0.14033567,46394.0,46384.0,0.15251512]
[1641252642432,0.14033567,46394.0,46384.0,0.14033567]
[1641252642730,0.14033567,46394.0,46385.0,0.01217945]
[1641252642929,0.33433567,46394.0,46385.0,0.01217945]
[1641252644334,0.14033567,46394.0,46385.0,0.01217945]
[1641252644936,0.33333567,46394.0,46385.0,0.01217945]
[1641252646348,0.14033567,46399.0,46392.0,0.18]
[1641252646540,3.7891,46415.0,46397.0,0.18]
[1641252646842,0.02155162,46414.0,46406.0,0.02154729]
[1641252647041,0.009794,46419.0,46406.0,0.06928]
[1641252647445,0.189794,46419.0,46409.0,0.02154599]
[1641252647740,0.18,46417.0,46409.0,0.02154599]
[1641252648341,0.14033567,46414.0,46409.0,0.02154599]
[1641252648742,0.32033567,46414.0,46405.0,0.02154781]
[1641252649042,0.33233567,46414.0,46405.0,0.02154781]
[1641252650043,0.34112967,46414.0,46405.0,0.02154781]
[1641252650245,0.14912967,46414.0,46405.0,0.02154781]
[1641252651044,0.33912967,46414.0,46405.0,0.02154781]
[1641252651845,0.18,46413.0,46405.0,0.02154781]
[1641252653044,0.37,46413.0,46405.0,0.02154781]
[1641252654247,0.18,46413.0,46405.0,0.02154781]
[1641252654550,0.18,46409.0,46404.0,0.14033567]
[1641252654947,0.42547,46409.0,46404.0,0.27933567]
[1641252655546,0.24547,46409.0,46404.0,0.27933567]
[1641252655749,0.181,46405.0,46404.0,0.139]
[1641252655947,1.131,46405.0,46394.0,1.9882]
[1641252656148,0.18,46397.0,46390.0,1.92655451]
[1641252656350,0.0657,46397.0,46394.0,0.14033567]
[1641252657050,0.2527,46397.0,46394.0,0.14033567]
[1641252657550,1.21496165,46409.0,46396.0,0.20154972]
[1641252657851,1.21496165,46409.0,46396.0,0.02154972]
[1641252658049,1.21496165,46409.0,46397.0,0.01217411]
[1641252658450,0.85047316,46408.0,46401.0,0.14033567]
[1641252659051,1.01047316,46408.0,46401.0,0.31233567]
[1641252659451,0.16,46408.0,46403.0,0.18]
[1641252659753,1.21496165,46404.0,46403.0,0.18]
[1641252659952,0.14033567,46419.0,46403.0,0.18]
[1641252660261,1.915,46436.0,46413.0,0.20153901]
[1641252660454,0.14033567,46437.0,46422.0,0.28067134]
[1641252660651,0.32033567,46437.0,46422.0,0.3419871]
[1641252660852,1.70276682,46434.0,46422.0,0.3419871]
[1641252661053,1.70276682,46434.0,46422.0,0.5349871]
[1641252662154,0.14033567,46437.0,46422.0,1.17946069]
[1641252662155,0.18,46433.0,46422.0,1.17946069]
[1641252662356,0.18,46433.0,46422.0,0.98646069]
[1641252662552,0.18,46433.0,46428.0,0.14033567]
[1641252662954,0.02,46439.0,46429.0,0.18]
[1641252663152,0.02,46439.0,46431.0,0.02153551]
[1641252664356,0.02,46439.0,46437.0,0.14033567]
[1641252665157,0.02,46439.0,46437.0,0.32833567]
[1641252665757,0.189794,46438.0,46437.0,0.188]
[1641252665958,0.253924,46438.0,46437.0,0.188]
[1641252666560,1.52425967,46438.0,46437.0,0.188]
[1641252666760,1.52525967,46438.0,46437.0,0.188]
[1641252667062,0.21425967,46438.0,46423.0,0.02153921]
[1641252667261,0.15012967,46438.0,46423.0,0.02153921]
[1641252667659,0.15012967,46438.0,46424.0,0.07277791]
[1641252668261,0.18,46436.0,46424.0,0.07277791]
[1641252668459,0.18,46436.0,46423.0,0.02153921]
[1641252668660,0.18,46436.0,46425.0,0.72441999]
[1641252669061,0.18,46428.0,46425.0,0.72441999]
[1641252669260,0.2378,46428.0,46425.0,0.72441999]
[1641252669462,0.0578,46428.0,46425.0,0.72441999]
[1641252669964,0.0578,46428.0,46424.0,0.72441999]
[1641252670164,0.2378,46428.0,46424.0,0.72441999]
[1641252670561,0.37813567,46428.0,46424.0,0.72441999]
[1641252671165,0.37813567,46428.0,46424.0,0.90241999]
[1641252672363,0.19813567,46428.0,46424.0,0.90241999]
[1641252672568,0.37813567,46428.0,46425.0,0.72441999]
[1641252672965,0.19813567,46428.0,46425.0,0.72441999]
[1641252673165,0.19813567,46428.0,46425.0,0.179]
[1641252673365,0.14033567,46428.0,46425.0,0.179]
[1641252673577,0.14033567,46428.0,46425.0,0.20053851]
[1641252674065,0.14033567,46428.0,46425.0,0.179]
[1641252674265,0.04153986,46439.0,46425.0,0.179]
[1641252674465,0.02,46439.0,46438.0,0.14033567]
[1641252674665,0.02,46439.0,46438.0,0.22165567]
[1641252675066,0.02,46439.0,46438.0,0.40565567]
[1641252675464,0.02,46439.0,46438.0,0.26532]
[1641252675866,0.2,46439.0,46438.0,0.184]
[1641252676466,0.22254065,46439.0,46431.0,0.14033567]
[1641252676666,0.18,46432.0,46431.0,0.14033567]
[1641252677066,0.18,46432.0,46431.0,0.29633567]
[1641252677265,0.12,46432.0,46431.0,0.29633567]
[1641252677468,0.02,46439.0,46431.0,0.47633567]
[1641252677670,0.02,46439.0,46438.0,0.06]
[1641252677966,0.02,46439.0,46434.0,0.18]
[1641252678570,0.02,46439.0,46438.0,0.14033567]
[1641252679169,0.02,46439.0,46438.0,0.31833567]
[1641252680371,0.02,46439.0,46438.0,0.14033567]
[1641252681185,0.02,46439.0,46438.0,0.31833567]
[1641252682587,0.02,46439.0,46438.0,0.14033567]
[1641252683086,0.02,46439.0,46438.0,0.31433567]
[1641252684088,0.02,46439.0,46438.0,0.49433567]
[1641252684289,0.14033567,46452.0,46438.0,0.51586645]
[1641252684489,0.02153078,46459.0,46446.0,0.14033567]
[1641252684688,0.14033567,46456.0,46447.0,0.18]
[1641252684889,0.14033567,46456.0,46446.0,0.14033567]
[1641252685088,0.14033567,46456.0,46446.0,0.32333567]
[1641252685689,0.03132478,46459.0,46446.0,0.32333567]
[1641252686391,0.03132478,46459.0,46446.0,0.14033567]
[1641252687291,0.03132478,46459.0,46446.0,0.32133567]
[1641252688595,0.03132478,46459.0,46446.0,0.14033567]
[1641252689094,0.03132478,46459.0,46446.0,0.32233567]
[1641252690601,1.70276682,46462.0,46452.0,0.18]
[1641252690800,0.02153021,46460.0,46452.0,0.18]
[1641252691198,0.02153021,46460.0,46452.0,0.362]
[1641252692600,0.02153021,46460.0,46459.0,0.14033567]
[1641252693202,0.02153021,46460.0,46459.0,0.31733567]
[1641252694503,0.03132144,46466.0,46459.0,0.14033567]
[1641252695104,0.03132144,46466.0,46459.0,0.31733567]
[1641252695304,0.02152744,46466.0,46459.0,0.31733567]
[1641252696204,1.21362187,46460.0,46459.0,0.31733567]
[1641252696404,1.21362187,46460.0,46459.0,0.14033567]
[1641252697104,1.21362187,46460.0,46459.0,0.32633567]
[1641252697605,0.84942065,46464.0,46459.0,0.32633567]
[1641252698605,0.02152901,46463.0,46459.0,0.14033567]
[1641252698808,0.08086901,46463.0,46459.0,0.14033567]
[1641252699112,0.08086901,46463.0,46459.0,0.28833567]
[1641252699113,0.001,46460.0,46459.0,0.28833567]
[1641252699706,0.03132301,46463.0,46459.0,0.28833567]
[1641252700605,0.84942065,46460.0,46459.0,0.14033567]
[1641252701206,0.84942065,46460.0,46459.0,0.28833567]
[1641252702106,1.21362187,46462.0,46459.0,0.28833567]
[1641252702509,1.21362187,46461.0,46459.0,0.14033567]
[1641252702708,0.001,46460.0,46459.0,0.14033567]
[1641252703108,0.001,46460.0,46459.0,0.28933567]
[1641252703509,0.06515,46460.0,46459.0,0.28933567]
[1641252703709,0.06515,46460.0,46459.0,0.149]
[1641252704310,0.08668082,46460.0,46459.0,0.149]
[1641252704511,0.08668082,46460.0,46451.0,0.14033567]
[1641252704714,0.08668082,46460.0,46451.0,0.32033567]
[1641252704715,0.02153082,46460.0,46451.0,0.32033567]
[1641252705212,0.02153082,46460.0,46451.0,0.50233567]
[1641252706215,0.84944284,46456.0,46451.0,0.50233567]
[1641252706416,0.84944284,46456.0,46451.0,0.32033567]
[1641252707215,0.84944284,46456.0,46451.0,0.50433567]
[1641252707617,0.92230284,46456.0,46451.0,0.32433567]
[1641252707816,0.84944284,46455.0,46451.0,0.32433567]
[1641252708626,0.84944284,46455.0,46451.0,0.14033567]
[1641252709019,0.02153396,46452.0,46442.0,2.13823567]
[1641252709219,0.02153396,46452.0,46451.0,0.184]
[1641252709619,0.02253396,46452.0,46451.0,0.0001]
[1641252709820,0.02353396,46452.0,46442.0,0.14033567]
[1641252710020,0.02153396,46452.0,46442.0,0.14033567]
[1641252710623,0.02153396,46452.0,46438.0,0.18]
[1641252710624,0.14033567,46447.0,46438.0,0.18]
[1641252711220,0.32833567,46447.0,46438.0,0.133]
[1641252711422,0.02153749,46444.0,46438.0,0.133]
[1641252711621,0.10040749,46444.0,46438.0,0.133]
[1641252712625,0.14033567,46440.0,46433.0,1.9158]
[1641252712826,0.14033567,46440.0,46432.0,0.32033567]
[1641252713029,0.14033567,46440.0,46438.0,0.18]
[1641252713327,0.32433567,46440.0,46438.0,0.18]
[1641252713530,0.32433567,46440.0,46433.0,0.166]
[1641252713928,0.32433567,46440.0,46433.0,0.346]
[1641252714128,0.009794,46439.0,46433.0,0.346]
[1641252714527,0.009794,46439.0,46432.0,0.14033567]
[1641252715135,0.193794,46439.0,46432.0,0.48633567]
[1641252715738,0.193794,46439.0,46432.0,0.166]
[1641252716140,0.193794,46439.0,46432.0,0.346]
[1641252716739,0.193794,46439.0,46437.0,0.18]
[1641252717138,0.200794,46439.0,46437.0,0.18]
[1641252718542,0.009794,46439.0,46437.0,0.18]
[1641252719343,0.193794,46439.0,46437.0,0.337]
[1641252719543,0.193794,46439.0,46437.0,0.157]
[1641252719742,0.193794,46439.0,46438.0,0.12]
[1641252719944,0.193794,46439.0,46437.0,0.157]
[1641252720643,0.009794,46439.0,46435.0,0.18]
[1641252721147,0.104364,46439.0,46427.0,0.16187316]
[1641252721349,0.290364,46439.0,46435.0,0.109]
[1641252722146,0.02154059,46438.0,46435.0,0.109]
[1641252723148,0.02154059,46438.0,46432.0,0.18]
[1641252723346,0.20654059,46438.0,46432.0,0.18]
[1641252723747,0.20654059,46438.0,46429.0,0.18]
[1641252724147,0.20654059,46438.0,46427.0,0.14033567]
[1641252724348,0.20654059,46438.0,46433.0,0.83862061]
[1641252724548,0.02154059,46438.0,46433.0,0.83862061]
[1641252725048,0.02154059,46438.0,46428.0,0.83862061]
[1641252725247,0.20754059,46438.0,46428.0,0.83862061]
[1641252726552,0.02154059,46438.0,46428.0,0.83862061]
[1641252726750,1.21667126,46429.0,46428.0,0.83862061]
[1641252727351,1.40767126,46429.0,46428.0,0.83862061]
[1641252727950,1.40767126,46429.0,46427.0,0.14033567]
[1641252728150,1.40767126,46429.0,46421.0,0.32033567]
[1641252728151,0.009794,46428.0,46421.0,0.32033567]
[1641252728352,0.009794,46428.0,46421.0,0.18]
[1641252728551,0.0215464,46425.0,46421.0,0.18]
[1641252728753,0.14033567,46422.0,46418.0,1.9403]
[1641252728953,0.20082567,46422.0,46414.0,0.02]
[1641252729155,0.20082567,46422.0,46418.0,0.18]
[1641252729353,0.009794,46421.0,46418.0,0.18]
[1641252731256,0.193794,46421.0,46418.0,0.18]
[1641252732656,0.009794,46421.0,46418.0,0.18]
[1641252733357,0.182794,46421.0,46418.0,0.18]
[1641252735157,0.009794,46421.0,46418.0,0.18]
[1641252735358,0.187794,46421.0,46418.0,0.18]
[1641252736661,0.009794,46421.0,46414.0,0.02]